[Event "Titled Tuesday Blitz January 31 Early 2023"]
[White "Shimanov, Aleksandr"]
[Black "Bacrot, Etienne"]
[WhiteFideId "4198603"]
[BlackFideId "605506"]
[WhiteElo "2581"]
[BlackElo "2667"]
[Result "1/2-1/2"]
[Round "06"]
[TimeControl "180+2"]
[Date "2023.01.31"]
[WhiteClock "0:00:07"]
[BlackClock "0:00:11"]

1. e4 {[%clk 0:03:00]}  c5 {[%clk 0:03:00]} 2. d4 {[%clk 0:03:00]}  cxd4 {[%clk 0:03:00]} 3. Qxd4 {[%clk 0:03:01]}  Nc6 {[%clk 0:03:00]} 4. Qd3 {[%clk 0:03:01]}  Nf6 {[%clk 0:03:00]} 5. Nc3 {[%clk 0:03:01]}  d6 {[%clk 0:03:00]} 6. Nf3 {[%clk 0:02:59]}  g6 {[%clk 0:03:00]} 7. Bg5 {[%clk 0:02:58]}  Bg7 {[%clk 0:03:01]} 8. Be2 {[%clk 0:02:58]}  O-O {[%clk 0:03:00]} 9. O-O {[%clk 0:02:56]}  h6 {[%clk 0:03:00]} 10. Bh4 {[%clk 0:02:49]}  Bg4 {[%clk 0:02:46]} 11. Nd5 {[%clk 0:02:41]}  Nxd5 {[%clk 0:02:33]} 12. exd5 {[%clk 0:02:40]}  Bxf3 {[%clk 0:02:31]} 13. Qxf3 {[%clk 0:02:22]}  Nd4 {[%clk 0:02:29]} 14. Qd3 {[%clk 0:02:22]}  Nf5 {[%clk 0:01:50]} 15. Bg3 {[%clk 0:02:09]}  Nxg3 {[%clk 0:01:44]} 16. hxg3 {[%clk 0:02:08]}  Bxb2 {[%clk 0:01:43]} 17. Rab1 {[%clk 0:02:09]}  Bf6 {[%clk 0:01:43]} 18. Rxb7 {[%clk 0:02:09]}  Qa5 {[%clk 0:01:40]} 19. Qb3 {[%clk 0:02:05]}  Qd2 {[%clk 0:01:28]} 20. Qd3 {[%clk 0:01:55]}  Qa5 {[%clk 0:01:23]} 21. Qb3 {[%clk 0:01:54]}  Rfc8 {[%clk 0:01:23]} 22. c4 {[%clk 0:01:52]}  h5 {[%clk 0:01:12]} 23. Rd1 {[%clk 0:01:45]}  Qd8 {[%clk 0:00:52]} 24. Qa4 {[%clk 0:01:39]}  Rcb8 {[%clk 0:00:46]} 25. Rdb1 {[%clk 0:01:33]}  Bd4 {[%clk 0:00:41]} 26. Kf1 {[%clk 0:01:29]}  Kg7 {[%clk 0:00:31]} 27. Bd3 {[%clk 0:01:26]}  Rxb7 {[%clk 0:00:23]} 28. Rxb7 {[%clk 0:01:27]}  Rb8 {[%clk 0:00:21]} 29. Qc6 {[%clk 0:01:08]}  Rxb7 {[%clk 0:00:21]} 30. Qxb7 {[%clk 0:01:09]}  Kf6 {[%clk 0:00:19]} 31. Qb4 {[%clk 0:01:07]}  Qc7 {[%clk 0:00:17]} 32. Ke2 {[%clk 0:01:04]}  Kg7 {[%clk 0:00:17]} 33. Qd2 {[%clk 0:00:56]}  Qc5 {[%clk 0:00:16]} 34. Qf4 {[%clk 0:00:55]}  Be5 {[%clk 0:00:14]} 35. Qe3 {[%clk 0:00:55]}  Qa3 {[%clk 0:00:12]} 36. Qd2 {[%clk 0:00:56]}  Bc3 {[%clk 0:00:12]} 37. Qc2 {[%clk 0:00:54]}  Bd4 {[%clk 0:00:12]} 38. Qd2 {[%clk 0:00:51]}  a5 {[%clk 0:00:10]} 39. Qc2 {[%clk 0:00:49]}  a4 {[%clk 0:00:10]} 40. Qd2 {[%clk 0:00:50]}  Bc3 {[%clk 0:00:10]} 41. Qc2 {[%clk 0:00:50]}  Qb4 {[%clk 0:00:08]} 42. Kf3 {[%clk 0:00:45]}  Bd4 {[%clk 0:00:06]} 43. Qe2 {[%clk 0:00:43]}  Bf6 {[%clk 0:00:06]} 44. Qc2 {[%clk 0:00:33]}  a3 {[%clk 0:00:06]} 45. Ke2 {[%clk 0:00:33]}  Qb6 {[%clk 0:00:05]} 46. Qc1 {[%clk 0:00:28]}  Bd4 {[%clk 0:00:03]} 47. f3 {[%clk 0:00:22]}  Bb2 {[%clk 0:00:03]} 48. Qe3 {[%clk 0:00:21]}  Qb7 {[%clk 0:00:02]} 49. g4 {[%clk 0:00:21]}  hxg4 {[%clk 0:00:02]} 50. fxg4 {[%clk 0:00:22]}  Be5 {[%clk 0:00:02]} 51. Qd2 {[%clk 0:00:22]}  Qa7 {[%clk 0:00:02]} 52. Qe3 {[%clk 0:00:23]}  Qa5 {[%clk 0:00:02]} 53. Qd2 {[%clk 0:00:23]}  Qc5 {[%clk 0:00:02]} 54. Qe3 {[%clk 0:00:24]}  Qb4 {[%clk 0:00:02]} 55. Qd2 {[%clk 0:00:25]}  Qb6 {[%clk 0:00:03]} 56. Qe3 {[%clk 0:00:25]}  Qb2+ {[%clk 0:00:03]} 57. Qd2 {[%clk 0:00:25]}  Qd4 {[%clk 0:00:03]} 58. Kf3 {[%clk 0:00:24]}  Qa1 {[%clk 0:00:04]} 59. Qe2 {[%clk 0:00:21]}  Qc3 {[%clk 0:00:04]} 60. Qc2 {[%clk 0:00:21]}  Qe1 {[%clk 0:00:04]} 61. Qf2 {[%clk 0:00:19]}  Qh1 {[%clk 0:00:04]} 62. Qe2 {[%clk 0:00:16]}  Bf6 {[%clk 0:00:04]} 63. Qf2 {[%clk 0:00:16]}  Qc1 {[%clk 0:00:04]} 64. Qe2 {[%clk 0:00:16]}  Qc3 {[%clk 0:00:04]} 65. g3 {[%clk 0:00:16]}  Qd4 {[%clk 0:00:04]} 66. Qe4 {[%clk 0:00:15]}  Qc3 {[%clk 0:00:04]} 67. Qe2 {[%clk 0:00:15]}  Be5 {[%clk 0:00:05]} 68. Kg2 {[%clk 0:00:13]}  Qc1 {[%clk 0:00:05]} 69. Be4 {[%clk 0:00:12]}  Qc3 {[%clk 0:00:05]} 70. Bf3 {[%clk 0:00:12]}  Qd4 {[%clk 0:00:05]} 71. Kh2 {[%clk 0:00:11]}  Qc3 {[%clk 0:00:05]} 72. Kg2 {[%clk 0:00:12]}  Qc1 {[%clk 0:00:05]} 73. Kh2 {[%clk 0:00:12]}  Qh6+ {[%clk 0:00:05]} 74. Kg2 {[%clk 0:00:12]}  Qg5 {[%clk 0:00:06]} 75. Kh2 {[%clk 0:00:13]}  Qh4+ {[%clk 0:00:06]} 76. Kg2 {[%clk 0:00:09]}  Qxg3+ {[%clk 0:00:07]} 77. Kf1 {[%clk 0:00:09]}  Qf4 {[%clk 0:00:07]} 78. Kg2 {[%clk 0:00:09]}  Qc1 {[%clk 0:00:08]} 79. Qf1 {[%clk 0:00:09]}  Qc3 {[%clk 0:00:08]} 80. Qe2 {[%clk 0:00:09]}  Qd4 {[%clk 0:00:08]} 81. Qe4 {[%clk 0:00:09]}  Qd2+ {[%clk 0:00:08]} 82. Qe2 {[%clk 0:00:09]}  Qf4 {[%clk 0:00:08]} 83. Qf2 {[%clk 0:00:07]}  Qh2+ {[%clk 0:00:08]} 84. Kf1 {[%clk 0:00:07]}  Qh6 {[%clk 0:00:08]} 85. Qe2 {[%clk 0:00:07]}  Qc1+ {[%clk 0:00:08]} 86. Kg2 {[%clk 0:00:07]}  Qf4 {[%clk 0:00:08]} 87. Qf2 {[%clk 0:00:07]}  Bd4 {[%clk 0:00:08]} 88. Qe2 {[%clk 0:00:08]}  Qc1 {[%clk 0:00:08]} 89. Qf1 {[%clk 0:00:07]}  Qd2+ {[%clk 0:00:08]} 90. Qe2 {[%clk 0:00:08]}  Qc1 {[%clk 0:00:09]} 91. Qf1 {[%clk 0:00:08]}  Qb2+ {[%clk 0:00:09]} 92. Qe2 {[%clk 0:00:09]}  f5 {[%clk 0:00:09]} 93. gxf5 {[%clk 0:00:09]}  gxf5 {[%clk 0:00:09]} 94. Bh5 {[%clk 0:00:09]}  Be5 {[%clk 0:00:08]} 95. Bf3 {[%clk 0:00:09]}  Kf6 {[%clk 0:00:09]} 96. Qf2 {[%clk 0:00:09]}  Kg5 {[%clk 0:00:08]} 97. Be2 {[%clk 0:00:08]}  Kf6 {[%clk 0:00:08]} 98. Qh4+ {[%clk 0:00:08]}  Kg6 {[%clk 0:00:07]} 99. Qh5+ {[%clk 0:00:07]}  Kg7 {[%clk 0:00:07]} 100. Qg5+ {[%clk 0:00:07]}  Kf8 {[%clk 0:00:07]} 101. Qxf5+ {[%clk 0:00:07]}  Bf6 {[%clk 0:00:08]} 102. Qc8+ {[%clk 0:00:04]}  Kg7 {[%clk 0:00:08]} 103. Qg4+ {[%clk 0:00:05]}  Kh6 {[%clk 0:00:08]} 104. Qh5+ {[%clk 0:00:05]}  Kg7 {[%clk 0:00:09]} 105. Qg4+ {[%clk 0:00:06]}  Kf7 {[%clk 0:00:09]} 106. Qe6+ {[%clk 0:00:06]}  Kf8 {[%clk 0:00:10]} 107. Qc8+ {[%clk 0:00:07]}  Kg7 {[%clk 0:00:11]} 108. Qg4+ {[%clk 0:00:07]} 1/2-1/2


[Site "https://www.chess.com"]

[Event "Titled Tuesday Blitz January 31 Early 2023"]
[White "Fier, Alexandr"]
[Black "Lenderman, Aleksandr"]
[WhiteFideId "2107139"]
[BlackFideId "2021285"]
[WhiteElo "2589"]
[BlackElo "2572"]
[Result "1-0"]
[Round "06"]
[TimeControl "180+2"]
[Date "2023.01.31"]
[WhiteClock "0:01:36"]
[BlackClock "0:01:27"]

1. d4 {[%clk 0:02:56]}  e6 {[%clk 0:02:59]} 2. c4 {[%clk 0:02:57]}  b6 {[%clk 0:02:59]} 3. Nc3 {[%clk 0:02:56]}  Bb7 {[%clk 0:02:59]} 4. a3 {[%clk 0:02:57]}  f5 {[%clk 0:02:58]} 5. d5 {[%clk 0:02:50]}  Nf6 {[%clk 0:02:58]} 6. g3 {[%clk 0:02:50]}  Bd6 {[%clk 0:02:57]} 7. Bg2 {[%clk 0:02:51]}  O-O {[%clk 0:02:57]} 8. Nf3 {[%clk 0:02:51]}  Na6 {[%clk 0:02:57]} 9. O-O {[%clk 0:02:51]}  Nc5 {[%clk 0:02:56]} 10. Nd4 {[%clk 0:02:52]}  Be5 {[%clk 0:02:56]} 11. e3 {[%clk 0:02:42]}  a5 {[%clk 0:02:55]} 12. f4 {[%clk 0:02:39]}  Bxd4 {[%clk 0:02:54]} 13. exd4 {[%clk 0:02:38]}  Nce4 {[%clk 0:02:54]} 14. Nxe4 {[%clk 0:02:38]}  Nxe4 {[%clk 0:02:54]} 15. dxe6 {[%clk 0:02:37]}  dxe6 {[%clk 0:02:54]} 16. Be3 {[%clk 0:02:38]}  Qf6 {[%clk 0:02:54]} 17. Qa4 {[%clk 0:02:34]}  Rfd8 {[%clk 0:02:52]} 18. Rad1 {[%clk 0:02:34]}  c5 {[%clk 0:02:44]} 19. dxc5 {[%clk 0:02:10]}  Qxb2 {[%clk 0:02:44]} 20. c6 {[%clk 0:02:06]}  Rxd1 {[%clk 0:01:39]} 21. Rxd1 {[%clk 0:01:45]}  Nc3 {[%clk 0:01:37]} 22. cxb7 {[%clk 0:01:43]}  Rf8 {[%clk 0:01:37]} 23. Qd7 {[%clk 0:01:39]}  Nxd1 {[%clk 0:01:27]} 24. Qxe6+ {[%clk 0:01:39]}  Kh8 {[%clk 0:01:27]} 25. Qd6 {[%clk 0:01:36]} 1-0


[Site "https://www.chess.com"]

[Event "Titled Tuesday Blitz January 31 Early 2023"]
[White "Dominguez Perez, Leinier"]
[Black "Wieczorek, Oskar"]
[WhiteFideId "3503240"]
[BlackFideId "1133950"]
[WhiteElo "2739"]
[BlackElo "2512"]
[Result "1-0"]
[Round "06"]
[TimeControl "180+2"]
[Date "2023.01.31"]
[WhiteClock "0:00:09"]
[BlackClock "0:00:01"]

1. d4 {[%clk 0:03:00]}  Nf6 {[%clk 0:02:59]} 2. Nf3 {[%clk 0:03:01]}  g6 {[%clk 0:02:59]} 3. e3 {[%clk 0:03:01]}  Bg7 {[%clk 0:02:59]} 4. Be2 {[%clk 0:03:02]}  O-O {[%clk 0:03:00]} 5. O-O {[%clk 0:03:03]}  c5 {[%clk 0:02:56]} 6. dxc5 {[%clk 0:03:03]}  Qa5 {[%clk 0:02:52]} 7. c4 {[%clk 0:02:47]}  Qxc5 {[%clk 0:02:50]} 8. Nc3 {[%clk 0:02:47]}  d6 {[%clk 0:02:41]} 9. e4 {[%clk 0:02:43]}  Nc6 {[%clk 0:02:41]} 10. Be3 {[%clk 0:02:42]}  Qa5 {[%clk 0:02:41]} 11. Nd4 {[%clk 0:02:40]}  Nxd4 {[%clk 0:02:14]} 12. Bxd4 {[%clk 0:02:40]}  Be6 {[%clk 0:02:15]} 13. Rc1 {[%clk 0:02:39]}  Rfc8 {[%clk 0:02:14]} 14. b3 {[%clk 0:02:36]}  Nd7 {[%clk 0:02:05]} 15. Bxg7 {[%clk 0:02:34]}  Kxg7 {[%clk 0:02:06]} 16. f4 {[%clk 0:02:34]}  Nf6 {[%clk 0:02:06]} 17. Kh1 {[%clk 0:02:22]}  a6 {[%clk 0:02:00]} 18. Bd3 {[%clk 0:01:57]}  Qc5 {[%clk 0:01:27]} 19. Qe2 {[%clk 0:01:48]}  Bg4 {[%clk 0:01:18]} 20. Qb2 {[%clk 0:01:40]}  Qd4 {[%clk 0:01:16]} 21. Bb1 {[%clk 0:01:27]}  b5 {[%clk 0:01:09]} 22. h3 {[%clk 0:01:26]}  b4 {[%clk 0:01:09]} 23. Na4 {[%clk 0:01:22]}  Qxb2 {[%clk 0:01:06]} 24. Nxb2 {[%clk 0:01:23]}  Bd7 {[%clk 0:01:01]} 25. e5 {[%clk 0:01:22]}  Ne8 {[%clk 0:00:50]} 26. Be4 {[%clk 0:01:21]}  Rab8 {[%clk 0:00:49]} 27. Rfd1 {[%clk 0:01:12]}  Rc5 {[%clk 0:00:25]} 28. Nd3 {[%clk 0:01:01]}  Ra5 {[%clk 0:00:25]} 29. Rd2 {[%clk 0:01:01]}  f5 {[%clk 0:00:25]} 30. Bf3 {[%clk 0:00:59]}  h6 {[%clk 0:00:23]} 31. Re1 {[%clk 0:00:48]}  Kf8 {[%clk 0:00:15]} 32. h4 {[%clk 0:00:41]}  Bc8 {[%clk 0:00:04]} 33. Bc6 {[%clk 0:00:32]}  Rb6 {[%clk 0:00:02]} 34. Bf3 {[%clk 0:00:17]}  e6 {[%clk 0:00:02]} 35. Red1 {[%clk 0:00:15]}  Bd7 {[%clk 0:00:01]} 36. exd6 {[%clk 0:00:13]}  Rxd6 {[%clk 0:00:02]} 37. Nxb4 {[%clk 0:00:13]}  Rxd2 {[%clk 0:00:03]} 38. Rxd2 {[%clk 0:00:13]}  Ke7 {[%clk 0:00:02]} 39. Nd3 {[%clk 0:00:14]}  Ra3 {[%clk 0:00:02]} 40. Ne5 {[%clk 0:00:12]}  Bc8 {[%clk 0:00:01]} 41. Nxg6+ {[%clk 0:00:12]}  Kf6 {[%clk 0:00:01]} 42. Ne5 {[%clk 0:00:13]}  a5 {[%clk 0:00:01]} 43. Kh2 {[%clk 0:00:11]}  a4 {[%clk 0:00:02]} 44. b4 {[%clk 0:00:09]}  Rc3 {[%clk 0:00:01]} 45. b5 {[%clk 0:00:09]}  a3 {[%clk 0:00:01]} 46. b6 {[%clk 0:00:09]} 1-0


[Site "https://www.chess.com"]

[Event "Titled Tuesday Blitz January 31 Early 2023"]
[White "Jakubowski, Krzysztof"]
[Black "Babazada, Khazar"]
[WhiteFideId "1112848"]
[BlackFideId "13413554"]
[WhiteElo "2486"]
[BlackElo "2474"]
[Result "0-1"]
[Round "06"]
[TimeControl "180+2"]
[Date "2023.01.31"]
[WhiteClock "0:00:02"]
[BlackClock "0:01:20"]

1. e4 {[%clk 0:03:00]}  e5 {[%clk 0:02:59]} 2. Nc3 {[%clk 0:02:58]}  Nc6 {[%clk 0:02:57]} 3. Bc4 {[%clk 0:02:57]}  Nf6 {[%clk 0:02:56]} 4. d3 {[%clk 0:02:56]}  Bc5 {[%clk 0:02:54]} 5. f4 {[%clk 0:02:51]}  d6 {[%clk 0:02:48]} 6. Nf3 {[%clk 0:02:44]}  Bg4 {[%clk 0:02:48]} 7. Bb5 {[%clk 0:02:31]}  exf4 {[%clk 0:02:39]} 8. Bxf4 {[%clk 0:02:30]}  O-O {[%clk 0:02:39]} 9. Bxc6 {[%clk 0:02:27]}  bxc6 {[%clk 0:02:39]} 10. Bg5 {[%clk 0:02:24]}  Rb8 {[%clk 0:02:38]} 11. d4 {[%clk 0:02:14]}  Bb4 {[%clk 0:02:33]} 12. Qd3 {[%clk 0:02:10]}  h6 {[%clk 0:02:33]} 13. Bh4 {[%clk 0:02:07]}  g5 {[%clk 0:02:31]} 14. Nxg5 {[%clk 0:02:04]}  hxg5 {[%clk 0:02:29]} 15. Bxg5 {[%clk 0:02:05]}  Rb5 {[%clk 0:02:28]} 16. d5 {[%clk 0:01:53]}  Bxc3+ {[%clk 0:02:10]} 17. bxc3 {[%clk 0:01:49]}  Qe7 {[%clk 0:02:09]} 18. O-O {[%clk 0:01:19]}  Qxe4 {[%clk 0:02:09]} 19. Bxf6 {[%clk 0:01:00]}  Qxd3 {[%clk 0:02:09]} 20. cxd3 {[%clk 0:01:01]}  Rxd5 {[%clk 0:02:09]} 21. Rf4 {[%clk 0:00:59]}  Bh5 {[%clk 0:02:02]} 22. c4 {[%clk 0:00:45]}  Ra5 {[%clk 0:01:59]} 23. Re1 {[%clk 0:00:33]}  Bg6 {[%clk 0:01:55]} 24. d4 {[%clk 0:00:23]}  Rf5 {[%clk 0:01:54]} 25. Rxf5 {[%clk 0:00:20]}  Bxf5 {[%clk 0:01:55]} 26. Rf1 {[%clk 0:00:14]}  Be6 {[%clk 0:01:49]} 27. d5 {[%clk 0:00:06]}  cxd5 {[%clk 0:01:50]} 28. cxd5 {[%clk 0:00:07]}  Bxd5 {[%clk 0:01:51]} 29. Rf5 {[%clk 0:00:07]}  Be4 {[%clk 0:01:49]} 30. Rh5 {[%clk 0:00:06]}  Bh7 {[%clk 0:01:49]} 31. Kf2 {[%clk 0:00:05]}  Re8 {[%clk 0:01:49]} 32. g4 {[%clk 0:00:04]}  Re6 {[%clk 0:01:48]} 33. g5 {[%clk 0:00:04]}  c5 {[%clk 0:01:47]} 34. Rh3 {[%clk 0:00:02]}  d5 {[%clk 0:01:46]} 35. Rb3 {[%clk 0:00:02]}  Bc2 {[%clk 0:01:37]} 36. Rb8+ {[%clk 0:00:01]}  Kh7 {[%clk 0:01:37]} 37. Rc8 {[%clk 0:00:01]}  c4 {[%clk 0:01:36]} 38. h4 {[%clk 0:00:01]}  Kg6 {[%clk 0:01:34]} 39. Rh8 {[%clk 0:00:01]}  Rxf6+ {[%clk 0:01:28]} 40. gxf6 {[%clk 0:00:01]}  d4 {[%clk 0:01:28]} 41. Rd8 {[%clk 0:00:01]}  d3 {[%clk 0:01:27]} 42. Ke3 {[%clk 0:00:02]}  c3 {[%clk 0:01:26]} 43. Rd6 {[%clk 0:00:01]}  d2 {[%clk 0:01:25]} 44. Ke2 {[%clk 0:00:02]}  a5 {[%clk 0:01:21]} 45. a3 {[%clk 0:00:02]}  a4 {[%clk 0:01:20]} 0-1


[Site "https://www.chess.com"]

[Event "Titled Tuesday Blitz January 31 Early 2023"]
[White "Maksimovic, Bojan"]
[Black "Pranav, V"]
[WhiteFideId "14408120"]
[BlackFideId "25060783"]
[WhiteElo "2486"]
[BlackElo "2597"]
[Result "0-1"]
[Round "06"]
[TimeControl "180+2"]
[Date "2023.01.31"]
[WhiteClock "0:00:02"]
[BlackClock "0:00:24"]

1. e4 {[%clk 0:03:00]}  e5 {[%clk 0:02:58]} 2. Nf3 {[%clk 0:03:00]}  Nc6 {[%clk 0:02:59]} 3. Bb5 {[%clk 0:02:59]}  a6 {[%clk 0:02:59]} 4. Ba4 {[%clk 0:03:00]}  d6 {[%clk 0:03:00]} 5. c4 {[%clk 0:02:58]}  Bd7 {[%clk 0:03:00]} 6. O-O {[%clk 0:02:56]}  Nf6 {[%clk 0:02:59]} 7. Nc3 {[%clk 0:02:52]}  g6 {[%clk 0:02:59]} 8. Bxc6 {[%clk 0:02:49]}  Bxc6 {[%clk 0:02:55]} 9. Re1 {[%clk 0:02:48]}  Bg7 {[%clk 0:02:54]} 10. d4 {[%clk 0:02:46]}  Nh5 {[%clk 0:02:35]} 11. Bg5 {[%clk 0:02:39]}  f6 {[%clk 0:02:34]} 12. Be3 {[%clk 0:02:38]}  O-O {[%clk 0:02:31]} 13. Qb3 {[%clk 0:02:29]}  Rf7 {[%clk 0:02:13]} 14. d5 {[%clk 0:02:26]}  Bd7 {[%clk 0:02:13]} 15. Qxb7 {[%clk 0:02:21]}  Bg4 {[%clk 0:02:13]} 16. Nd2 {[%clk 0:02:13]}  c5 {[%clk 0:02:13]} 17. Qb3 {[%clk 0:02:10]}  Bd7 {[%clk 0:02:11]} 18. Qc2 {[%clk 0:01:58]}  f5 {[%clk 0:02:10]} 19. exf5 {[%clk 0:01:32]}  gxf5 {[%clk 0:02:10]} 20. f3 {[%clk 0:01:32]}  Kh8 {[%clk 0:02:09]} 21. a3 {[%clk 0:01:29]}  Qh4 {[%clk 0:02:06]} 22. b4 {[%clk 0:01:25]}  Rg8 {[%clk 0:02:04]} 23. bxc5 {[%clk 0:01:19]}  dxc5 {[%clk 0:02:05]} 24. Bxc5 {[%clk 0:00:41]}  Bf6 {[%clk 0:01:52]} 25. Bf2 {[%clk 0:00:11]}  Qh3 {[%clk 0:01:47]} 26. Bg3 {[%clk 0:00:06]}  Rxg3 {[%clk 0:01:39]} 27. hxg3 {[%clk 0:00:07]}  Qxg3 {[%clk 0:01:39]} 28. Nf1 {[%clk 0:00:07]}  Qg5 {[%clk 0:01:33]} 29. Qd2 {[%clk 0:00:07]}  Qh4 {[%clk 0:01:26]} 30. Qf2 {[%clk 0:00:08]}  Qg5 {[%clk 0:01:25]} 31. Qd2 {[%clk 0:00:07]}  Nf4 {[%clk 0:01:25]} 32. g3 {[%clk 0:00:04]}  h5 {[%clk 0:01:20]} 33. Kf2 {[%clk 0:00:04]}  Nh3+ {[%clk 0:01:17]} 34. Kg2 {[%clk 0:00:04]}  Nf4+ {[%clk 0:01:16]} 35. Kf2 {[%clk 0:00:05]}  Rg7 {[%clk 0:01:14]} 36. c5 {[%clk 0:00:02]}  Qh6 {[%clk 0:00:36]} 37. gxf4 {[%clk 0:00:02]}  Bh4+ {[%clk 0:00:37]} 38. Ke2 {[%clk 0:00:03]}  Rg2+ {[%clk 0:00:36]} 39. Kd1 {[%clk 0:00:04]}  Rxd2+ {[%clk 0:00:36]} 40. Nxd2 {[%clk 0:00:04]}  Bxe1 {[%clk 0:00:36]} 41. Kxe1 {[%clk 0:00:04]}  Qxf4 {[%clk 0:00:36]} 42. c6 {[%clk 0:00:04]}  Bc8 {[%clk 0:00:32]} 43. Rb1 {[%clk 0:00:05]}  e4 {[%clk 0:00:28]} 44. Ne2 {[%clk 0:00:03]}  Qh2 {[%clk 0:00:26]} 45. fxe4 {[%clk 0:00:03]}  fxe4 {[%clk 0:00:26]} 46. Nxe4 {[%clk 0:00:04]}  Qh1+ {[%clk 0:00:26]} 47. Kd2 {[%clk 0:00:02]}  Qxe4 {[%clk 0:00:24]} 48. Nc3 {[%clk 0:00:03]}  Qd4+ {[%clk 0:00:24]} 49. Kc2 {[%clk 0:00:01]}  Bf5+ {[%clk 0:00:25]} 50. Kb2 {[%clk 0:00:02]}  Bxb1 {[%clk 0:00:24]} 0-1


[Site "https://www.chess.com"]

[Event "Titled Tuesday Blitz January 31 Early 2023"]
[White "Anton Guijarro, David"]
[Black "Avila Pavas, Santiago"]
[WhiteFideId "2285525"]
[BlackFideId "4437128"]
[WhiteElo "2690"]
[BlackElo "2522"]
[Result "0-1"]
[Round "06"]
[TimeControl "180+2"]
[Date "2023.01.31"]
[WhiteClock "0:00:11"]
[BlackClock "0:00:42"]

1. Nf3 {[%clk 0:03:00]}  Nf6 {[%clk 0:03:00]} 2. b3 {[%clk 0:03:01]}  d5 {[%clk 0:03:01]} 3. Bb2 {[%clk 0:03:01]}  Bg4 {[%clk 0:03:01]} 4. h3 {[%clk 0:03:00]}  Bxf3 {[%clk 0:03:01]} 5. exf3 {[%clk 0:03:00]}  Nbd7 {[%clk 0:03:00]} 6. f4 {[%clk 0:03:00]}  e6 {[%clk 0:03:00]} 7. g3 {[%clk 0:03:00]}  Bd6 {[%clk 0:03:00]} 8. Bg2 {[%clk 0:03:00]}  O-O {[%clk 0:03:01]} 9. O-O {[%clk 0:03:01]}  c6 {[%clk 0:03:00]} 10. d4 {[%clk 0:03:00]}  a5 {[%clk 0:02:56]} 11. a4 {[%clk 0:02:55]}  c5 {[%clk 0:02:49]} 12. Na3 {[%clk 0:02:54]}  Rc8 {[%clk 0:02:46]} 13. c4 {[%clk 0:02:49]}  Nb6 {[%clk 0:02:32]} 14. cxd5 {[%clk 0:02:45]}  Nbxd5 {[%clk 0:02:33]} 15. Nc4 {[%clk 0:02:39]}  Be7 {[%clk 0:02:33]} 16. Rc1 {[%clk 0:02:35]}  b6 {[%clk 0:02:32]} 17. Re1 {[%clk 0:02:15]}  cxd4 {[%clk 0:02:21]} 18. Bxd4 {[%clk 0:01:59]}  Bc5 {[%clk 0:02:21]} 19. Ne5 {[%clk 0:01:46]}  Qd6 {[%clk 0:02:01]} 20. Nc4 {[%clk 0:01:40]}  Qd8 {[%clk 0:01:59]} 21. Bxc5 {[%clk 0:01:36]}  Rxc5 {[%clk 0:02:00]} 22. Qd4 {[%clk 0:01:34]}  Qc7 {[%clk 0:01:52]} 23. Qe5 {[%clk 0:01:23]}  Qe7 {[%clk 0:01:24]} 24. Rcd1 {[%clk 0:01:02]}  g6 {[%clk 0:01:15]} 25. g4 {[%clk 0:00:55]}  Nb4 {[%clk 0:00:55]} 26. Qd6 {[%clk 0:00:53]}  Qxd6 {[%clk 0:00:52]} 27. Rxd6 {[%clk 0:00:42]}  Nbd5 {[%clk 0:00:52]} 28. f5 {[%clk 0:00:33]}  gxf5 {[%clk 0:00:52]} 29. gxf5 {[%clk 0:00:33]}  Nf4 {[%clk 0:00:48]} 30. Bf1 {[%clk 0:00:25]}  Rxf5 {[%clk 0:00:47]} 31. Rxb6 {[%clk 0:00:25]}  Kh8 {[%clk 0:00:46]} 32. Rb5 {[%clk 0:00:24]}  Rg8+ {[%clk 0:00:46]} 33. Kh1 {[%clk 0:00:24]}  N6d5 {[%clk 0:00:45]} 34. Ne3 {[%clk 0:00:23]}  Rfg5 {[%clk 0:00:43]} 35. Bc4 {[%clk 0:00:21]}  Nxh3 {[%clk 0:00:42]} 36. Rf1 {[%clk 0:00:11]}  Rh5 {[%clk 0:00:42]} 0-1


[Site "https://www.chess.com"]

[Event "Titled Tuesday Blitz January 31 Early 2023"]
[White "Bruzon Batista, Lazaro"]
[Black "De Silva, L M S T"]
[WhiteFideId "3503739"]
[BlackFideId "9953698"]
[WhiteElo "2611"]
[BlackElo "2452"]
[Result "1-0"]
[Round "06"]
[TimeControl "180+2"]
[Date "2023.01.31"]
[WhiteClock "0:01:02"]
[BlackClock "0:00:13"]

1. Nf3 {[%clk 0:03:00]}  Nf6 {[%clk 0:02:58]} 2. g3 {[%clk 0:03:00]}  b5 {[%clk 0:02:58]} 3. d3 {[%clk 0:02:55]}  d5 {[%clk 0:02:57]} 4. Bg2 {[%clk 0:02:54]}  Bb7 {[%clk 0:02:56]} 5. O-O {[%clk 0:02:54]}  e6 {[%clk 0:02:56]} 6. c4 {[%clk 0:02:54]}  bxc4 {[%clk 0:02:54]} 7. dxc4 {[%clk 0:02:53]}  Be7 {[%clk 0:02:54]} 8. Qb3 {[%clk 0:02:48]}  Qc8 {[%clk 0:02:50]} 9. Bg5 {[%clk 0:02:29]}  Nbd7 {[%clk 0:02:48]} 10. Nc3 {[%clk 0:02:28]}  O-O {[%clk 0:02:45]} 11. Rac1 {[%clk 0:02:27]}  Rb8 {[%clk 0:02:41]} 12. Qc2 {[%clk 0:02:27]}  dxc4 {[%clk 0:02:33]} 13. Rfd1 {[%clk 0:02:24]}  Nb6 {[%clk 0:02:31]} 14. e4 {[%clk 0:02:20]}  h6 {[%clk 0:02:27]} 15. Bf4 {[%clk 0:02:19]}  a6 {[%clk 0:02:20]} 16. Qe2 {[%clk 0:02:16]}  Nfd7 {[%clk 0:02:15]} 17. Nd2 {[%clk 0:02:13]}  a5 {[%clk 0:01:24]} 18. Nb5 {[%clk 0:02:02]}  e5 {[%clk 0:01:22]} 19. Be3 {[%clk 0:02:00]}  Ba6 {[%clk 0:01:22]} 20. Nc3 {[%clk 0:01:56]}  Bc5 {[%clk 0:01:19]} 21. Bh3 {[%clk 0:01:48]}  Qb7 {[%clk 0:01:16]} 22. Nf3 {[%clk 0:01:43]}  Bd6 {[%clk 0:01:01]} 23. Nh4 {[%clk 0:01:39]}  Nc5 {[%clk 0:00:57]} 24. Nf5 {[%clk 0:01:39]}  Nxe4 {[%clk 0:00:52]} 25. Bxh6 {[%clk 0:01:29]}  Nxc3 {[%clk 0:00:44]} 26. bxc3 {[%clk 0:01:25]}  g6 {[%clk 0:00:35]} 27. Nxd6 {[%clk 0:01:23]}  cxd6 {[%clk 0:00:32]} 28. Bxf8 {[%clk 0:01:23]}  Rxf8 {[%clk 0:00:33]} 29. Rxd6 {[%clk 0:01:22]}  Qc7 {[%clk 0:00:31]} 30. Qxe5 {[%clk 0:01:19]}  Bb7 {[%clk 0:00:28]} 31. Rxg6+ {[%clk 0:01:16]}  fxg6 {[%clk 0:00:23]} 32. Qxc7 {[%clk 0:01:11]}  Bc8 {[%clk 0:00:21]} 33. Bxc8 {[%clk 0:01:07]}  Nxc8 {[%clk 0:00:22]} 34. Rd1 {[%clk 0:01:05]}  Ne7 {[%clk 0:00:16]} 35. Qxe7 {[%clk 0:01:04]}  Rf7 {[%clk 0:00:13]} 36. Qe6 {[%clk 0:01:02]} 1-0


[Site "https://www.chess.com"]